Workbook

Sheet Cover Page
D1: North Midlands Operations Ltd
N2: Version 20.5
B8: Add photo
N13: Notes:
N14: This template may require adjustments by individual operators to meet specific reporting requirements as defined in the site Permit(s)
B29: Annual Performance Report 2022
B31: Permit EPR/HP3247QS
B33: Dudley Energy from Waste Facility
B35: North Midlands Operations Ltd
B39: Year: | C39: 2022
B41: Address: | C41: Lister Road, Dudley, West Midlands, DY2 8YT
B43: Tel: | C43: 01179 372 811
B45: Email: | C45: emily.hingston@sol-environment.co.uk
B47: Prepared by: | C47: Emily Hingston | F47: Position: | G47: Consultant
B49: Approved by: | C49: Kate Harrop | F49: Position: | G49: Quality & Environmental Manager
B51: Version: | C51: 1
B53: Issue Date: | C53: 2023-01-31

Sheet Contents
A1: =+'Cover Page'!$B$29 -> Annual Performance Report 2022 | E1: =+'Cover Page'!$B$33 -> Dudley Energy from Waste Facility
A3: Contents | K3: Notes:
A4: Section | B4: Subject | H4: Page | K4: Section references and Page nos. to be inserted
B5: Facility Information | H5: 4 | K5: Sections and Subjects may require adjustment by individual operators to meet specific reporting requirements as defined in the sites Permit(s)
B6: Operational Summary | H6: 6
B7: Operational Data | H7: 5
B8: Performance Form 1 | H8: 7
B9: Energy Form 1 | H9: 8
B10: Permit Compliance | H10: 9
B11: Improvements | H11: 11
B12: Public Liasion | H12: 12
B13: Residue Quality - Optional | H13: 13
B14: Emissions to Water | H14: 14
B15: Emissions to Air (periodically monitored) | H15: 15
B16: Emissions to Air (continuously monitored) | H16: 16
B17: Hydrogen Chloride emissions | H17: 17
B18: Sulphur Dioxdie emsissions | H18: 18
B19: Oxides of Notrigen emissions | H19: 19
B20: Total Organic Carbon emissions | H20: 20
B21: Particulate Matter emissions | H21: 21
B22: Carbon Monoxide emissions | H22: 22
B23: Ammonia emissions | H23: 23
A25: Version Control
A26: Section | B26: Information | H26: Date
A33: Distribution
A34: Copy | B34: Name, Role | H34: No.

Sheet Facility Info
A1: =+'Cover Page'!$B$29 -> Annual Performance Report 2022 | E1: =+'Cover Page'!$B$33 -> Dudley Energy from Waste Facility
A3: Plant Description and Design | K3: Notes:
A5: The Dudley Energy from Waste Facility utilises municipal waste to recover energy in the form of electricity and steam for export to the local grid. The facility processes approximately 105,000 tpa of waste in two combustion streams with a combined capacity of up to 12 tonnes per hour which operate using moving grate furnace systems. The heat produced during combustion process is converted to electrical energy by generating steam in high-pressure boilers and expanding the steam through a steam turbine. When operating at full load, the plant will typically generate around 7.4 MW of electricity and, after satisfying its own power needs, exports approximately 6.5 MW of electricity to the grid. The installation provides a sustainable method of waste disposal and recovery, predominantly for the area within the administrative boundary of Dudley Metropolitan Borough Council, with smaller quantities of wastes accepted, where capacity and demand exists, from other local authorities within the general vicinity of the plant. The process includes waste reception and storage, combustion, waste heat boilers, abatement of flue gases and the onsite storage of residues produced, namely IBA and APCr. The plant is operated in accordance with its Environmental Management System which is designed to meet the requirements of ISO14001:2004. | K5: Include summary of plant design, design capacity, no. of combustion lines, electrical and heat capacity and any other general information that describes the facility, its location and purpose
A20: Summary of Operational Processes and Procedures
A22: The principle components of the process comprise the following: Waste Acceptance and Reception: All waste is delivered directly into the fuel storage building and unloaded into the storage bunkers. When required, the waste is discharged onto the feedstock feed system, which delivers the waste into the furnaces via feed hoppers. All waste is accepted in accordance to the sites waste acceptance procedures. Combustion: The feed ram ensures that material falls into the moving grate within the furnace in a controlled manner. The moving grate ensures the waste is agitated as it progresses down the furnace to the ash discharge. Primary air is introduced beneath the grate causing the waste to go through a series of drying and burning areas. Secondary air is introduced from above the grate for combustion control. Auxiliary oil fired burners are located in the combustion chamber for start up and temperature control. The produced gases are resident in the combustion chamber at the 850C for at least 2seconds before transfer to the boiler , economiser and abatement plant. Electricity Generation: Each furnace is equipped with a 2-pass water tube boiler raising steam at 45 bar and 355C. The steam then passes to a Steam Turbine and Generator, which exports electricity to the grid. Flue-Gas Cleaning: Flue gas cleaning and pollution control consists of urea injection for De-NOx, semi-dry scrubbing using milk of lime spray for acid gas neutralisation and activated carbon powder injection for absorption and removal of heavy metals, dioxins, VOCs and other harmful substances. Bag filters remove particulates prior to emission to atmosphere via a single 47m high stack. Process effluent is treated onsite in the effluent treatment plant and recycled through the process. Any surplus is discharged to foul sewer. The Plant is regulated under the terms of a Permit issued by the Environment Agency (reference HP3247QS) which contains conditions to ensure that the requirements of the Industrial Emissions Directive are met. North Midlands Operations Ltd operates all of its sites under an Integrated Management System certified to ISO 14001:2015 (environmental management), ISO 9001:2015 (quality management), and ISO 45001:2018 (health and safety management). In terms of plant operation, the incineration processes have been designed against the background of a detailed assessment of the prevailing environmental conditions at the site location, and are based upon the Best Available Technology (BAT) as detailed both in the original Authorisation application and the application for the Permit issued under the Environmental Permitting Regulations. These include, but are not limited to, the following: • Well proven process plant developed specifically for incineration of municipal solid wastes • Efficient, comprehensive process control and monitoring systems to ensure optimum conditions for complete combustion of the wastes and to minimise emissions from the processes • Operations confined within buildings under slight negative pressure in order to contain and minimise emissions such as dust and odour • Qualified and experienced operating and maintenance personnel to implement procedures to ensure that the required high standards are maintained. Operating and Maintenance Procedures are established according to an internationally recognised system of quality assurance • Multi-stage high efficiency flue gas cleaning systems comprising deNOx Selective Non-Catalytic Reduction (SNCR) for the removal of oxides of nitrogen, activated carbon and lime semi-dry acid gas scrubbing for controlling acid gas, dioxins/furans and mercury emissions • Final stage flue gas abatement for particulate materials using fabric filtration • Residues from the combustion process and from the flue gas cleaning system disposed of by approved means, maximising recycling wherever possible • Waste water from the process is neutralised and recycled as far as is practicable to minimise the quantities released to sewers • Provision of bunds or double skinned vessels for storage of fuel and chemicals in order to prevent accidental and inappropriate discharge to the public sewers and watercourse. The site is currently working towards compliance with the new Waste Incineration BAT Conclusions, to which compliance is required by 03.12.2023. | K22: Include summary of key processes and procedures such as (but not limited to); waste reception, control rooms, grate, bed and boiler, energy & heat generation, cooling systems, residue management, emission controls, health and safety systems, maintenance

Sheet Operational Data
A1: =+'Cover Page'!$B$29 -> Annual Performance Report 2022 | E1: Dudley EfW
A3: Operational Data | K3: Notes:
A4: Plant Size | B4: 105000 | D4: tonnes pa | F4: MWth | G4: 7.14 | H4: MWe | K4: * - RDF to include SRF
A5: No. of combustion lines | B5: 2 | D5: No. of Turbines: | F5: 1 | K5: ** - CHP plants only
K6: 2020 updates include; heat in MWh, water in Litres, NCV in MJ/kg
A7: Waste types received | B7: Unit | C7: Q1 | D7: Q2 | E7: Q3 | F7: Q4 | G7: Year Total | H7: %
A8: Household / Local Authority | B8: tonnes | C8: 21278 | D8: 20580 | E8: 20544 | F8: 20686 | G8: =SUM(C8:F8) -> 83088 | H8: =IF(G8>0,G8/$G$15,"-") -> 0.8709707852 | K8: Availabiity Definition: 'the availability of a line is to be calculated by the number of hours the line reported Continuously Monitored emission levels to the Regulator through the calendar year divided by the total number of hours in that year. The overall plant availability is calculated as the Mean of all lines in the plant. For clarity this includes periods of Other Than Normal Operating Conditions (OTNOC) and abnormal operation.' Rationale: The primary function of an Energy from Waste facility is the disposal of waste. It follows therefore that the availability of a plant is determined by the period of time a facility spends undertaking this activity.
A9: Commercial & Industrial | C9: 3789 | D9: 2746 | E9: 3790 | F9: 1984 | G9: =SUM(C9:F9) -> 12309 | H9: 0.1290292148
A10: Hazardous | C10: 0 | D10: 0 | E10: 0 | F10: 0 | G10: 0 | H10: -
A11: Clinical | C11: 0 | D11: 0 | E11: 0 | F11: 0 | G11: 0 | H11: -
A12: Waste wood (biomass) | C12: 0 | D12: 0 | E12: 0 | F12: 0 | G12: 0 | H12: -
A13: Refuse Derived Fuel * - H'hold/LA | C13: 0 | D13: 0 | E13: 0 | F13: 0 | G13: =SUM(C13:F13) -> 0 | H13: -
A14: Refuse Derived Fuel * - C&I | C14: 0 | D14: 0 | E14: 0 | F14: 0 | G14: 0 | H14: -
A15: Total waste received | C15: =SUM(C8:C14) -> 25067 | D15: =SUM(D8:D14) -> 23326 | E15: =SUM(E8:E14) -> 24334 | F15: =SUM(F8:F14) -> 22670 | G15: =SUM(G8:G14) -> 95397 | H15: 1
A16: Rejected Waste | G16: =SUM(C16:F16) -> 0 | H16: =IF(G16>0,G16/$G$15,"-") -> -
A17: Unprocessed waste transferred out | G17: =SUM(C17:F17) -> 0 | H17: =IF(G17>0,G17/$G$15,"-") -> -
A18: Total waste combusted | C18: 25609 | D18: 21117 | E18: 24233 | F18: 2342 | G18: =SUM(C18:F18) -> 73301 | H18: =IF(G18>0,G18/$G$15,"-") -> 0.7683784605
A20: Energy Useage / Export | B20: Unit | C20: Q1 | D20: Q2 | E20: Q3 | F20: Q4 | G20: Year Total | H20: KWh/te
A21: Power Generated | B21: MWh | C21: 12532 | D21: 9248 | E21: 10045 | F21: 9037 | G21: =SUM(C21:F21) -> 40862 | H21: =IF(G21>0,G21*1000/$G$18,"-") -> 557.4548778
A22: Power Exported | C22: 10372 | D22: 7654 | E22: 8314 | F22: 7479 | G22: =SUM(C22:F22) -> 33819 | H22: =IF(G22>0,G22*1000/$G$18,"-") -> 461.3716048
A23: Power Used on site | C23: 2160 | D23: 1594 | E23: 1731 | F23: 1557 | G23: =SUM(C23:F23) -> 7042 | H23: =IF(G23>0,G23*1000/$G$18,"-") -> 96.0696307
A24: Power Imported | C24: 16 | D24: 114 | E24: 11 | F24: 92 | G24: 233 | H24: =IF(G24>0,G24*1000/$G$18,"-") -> 3.178674234
A25: Parasitic Load | B25: % | C25: =IF(C21>0,1-C22/(C21+C24),"-") -> 0.1734140899 | D25: =IF(D21>0,1-D22/(D21+D24),"-") -> 0.1824396496 | E25: =IF(E21>0,1-E22/(E21+E24),"-") -> 0.1732299125 | F25: =IF(F21>0,1-F22/(F21+F24),"-") -> 0.1807426881 | G25: =IF(G21>0,1-G22/(G21+G24),"-") -> 0.1770531695
A26: Thermal Energy Produced ** | B26: MWh | G26: =SUM(C26:F26) -> 0 | H26: =IF(G26>0,G26*1000/$G$18,"-") -> -
A27: Thermal Energy Exported ** | G27: 0 | H27: =IF(G27>0,G27*1000/$G$18,"-") -> -
A28: R1 value | G28: Design / Operational / n/a
A30: Waste Disposal & Recovery | B30: Unit | C30: Q1 | D30: Q2 | E30: Q3 | F30: Q4 | G30: Year Total | H30: % inputs
A31: APC Residues - produced | B31: tonnes | C31: 789 | D31: 722 | E31: 871 | F31: 727 | G31: =SUM(C31:F31) -> 3109 | H31: =IF(G31>0,G31/$G$15,"-") -> 0.03259012338
A32: IBA - produced | C32: 4289 | D32: 3675 | E32: 4402 | F32: 3647 | G32: 16013 | H32: =IF(G32>0,G32/$G$15,"-") -> 0.1678564315
A33: Metals recycling | C33: 521 | D33: 308 | E33: 370 | F33: 429 | G33: =SUM(C33:F33) -> 1628 | H33: =IF(G33>0,G33/$G$15,"-") -> 0.01706552617
A35: Raw Material Usage | B35: Unit | C35: Q1 | D35: Q2 | E35: Q3 | F35: Q4 | G35: Year Total | H35: kg or Ltr /te
A36: Mains Water | B36: M3 | C36: 14258 | D36: 15633 | E36: 19832 | F36: 19908 | G36: =SUM(C36:F36) -> 69631 | H36: =IF(G36>0,G36/$G$15,"-") -> 0.7299076491
A37: Other Water | B37: ltrs | C37: 0 | D37: 0 | E37: 0 | F37: 0 | G37: 0 | H37: =IF(G37>0,G37/$G$15,"-") -> -
A38: Ammonia | B38: kgs | C38: 0 | D38: 0 | E38: 0 | F38: 0 | G38: 0 | H38: =IF(G38>0,G38/$G$15,"-") -> -
A39: Urea | B39: kgs | C39: 52000 | D39: 42000 | E39: 42000 | F39: 33000 | G39: =SUM(C39:F39) -> 169000 | H39: =IF(G39>0,G39/$G$15,"-") -> 1.771544179
A40: Activated Carbon | B40: kgs | C40: 3000 | D40: 3000 | E40: 3000 | F40: 2500 | G40: 11500 | H40: =IF(G40>0,G40/$G$15,"-") -> 0.1205488642
A41: Lime / hydrated lime | B41: kgs | C41: 226200 | D41: 253300 | E41: 273500 | F41: 222020 | G41: 975020 | H41: 10.22065683
A42: Fuel oil | B42: ltrs | C42: 8810 | D42: 29518 | E42: 2840 | F42: 13441616 | G42: 13482784 | H42: 141.3334172
A43: Gas | B43: cf | D43: 0 | E43: 0 | F43: 0 | G43: 0 | H43: -
A44: HCL | B44: ltrs | C44: 3830 | D44: 4510 | E44: 10180 | F44: 9790 | G44: 28310 | H44: 0.2967598562
A45: Caustic Soda | B45: litres | C45: 4560 | D45: 6665 | E45: 10345 | F45: 9246 | G45: 30816 | H45: 0.3230290261
A46: O2 Reducer | B46: litres | C46: 583 | D46: 455 | E46: 903 | F46: 340 | G46: 2281 | H46: 0.02391060516
A47: Phosphate | B47: litres | C47: 135 | D47: 61 | E47: 370 | F47: 580 | G47: 1146 | H47: 0.01201295638
C48: 1
A49: Summary | B49: Line/Unit | C49: Kate Harrop | D49: Q2 | E49: Q3 | F49: Q4 | G49: Year Total | J49: Hrs in year
A50: Availability of waste combustion by line, hrs | B50: 1 | C50: 2129.5 | D50: 1716.25 | E50: 2202.5 | F50: 1935 | G50: =SUM(C50:F50) -> 7983.25 | H50: =(G50)/J50 -> 0.9113299087 | J50: 8760
B51: 2 | C51: 2156 | D51: 1807.25 | E51: 2109.5 | F51: 2012.05 | G51: =SUM(C51:F51) -> 8084.8 | H51: =(G51)/J50 -> 0.9229223744
A52: Overall Availability, mean avg. of all lines, hrs | C52: =AVERAGE(C50:C51) -> 2142.75 | D52: 1761.75 | E52: 2156 | F52: 1973.525 | G52: =AVERAGE(G50:G51) -> 8034.025 | H52: =(G52)/J50 -> 0.9171261416
A53: Hours of turbine operations, hrs | B53: 1 | C53: 44957 | D53: 1854 | E53: 2192.5 | F53: 2012.75 | G53: 51016.25 | H53: =G53/J50 -> 5.823772831
A54: Hours of heat / steam export | G54: 0 | H54: =IF(B54>0,#REF!/J50,"n/a") -> n/a
A55: Net Calorific Value of waste | B55: MJ/kg | C55: 24.5 | D55: 24.5 | E55: 24.38 | F55: 24.13 | H55: -
A56: Abnormal Events | B56: qty. | C56: 1 | D56: 0 | E56: 0 | F56: 0 | G56: 1 | H56: =IF(G56>0,"yes","no") -> yes
A57: Abnormal operation | B57: hours | C57: 1 | D57: 0 | E57: 0 | F57: 0 | G57: 1 | H57: =+(G57)/J50 -> 0.0001141552511
A58: Permit Breaches | B58: qty. | C58: 4 | D58: 4 | E58: 3 | F58: 13 | G58: 24 | H58: =IF(G58>0,"yes","no") -> yes

Sheet Operational Summary
A1: =+'Cover Page'!$B$29 -> Annual Performance Report 2022 | E1: ='Operational Data'!E1 -> Dudley EfW
A3: Summary of Plant Operations and Maintenance during the reporting year | K3: Notes:
A5: In March 2022, MES Environmental's parent company CNIM went into receivership. In October, MES Environmental Ltd went into liquidation, and the environmental permit was transferred to North Midlands Operations Ltd. MES Environmental Ltd staff were TUPE'd over to NMOL, allowing for continuity of day-to-day operation. However, it was announced in December that Dudley Metropolitan Borough Council was terminating their contract with Dudley Waste Services Ltd, and that the operation of the plant would be transferred to Urbaser on 14th February 2023. The Dudley staff will be TUPE'd over to Urbaser at handover. Due to the contractual and financial uncertainties and challenges during 2022, it seems that investment in improvements was limited. • In overall 2022, the overall boilers availability was 91.7%. Tube leaks were a primary cause of downtime during 2022. The turbine unavailability was a good 93.59%. • Extensive scheduled maintenance was undertaken at the plants annual planned shutdown period: o Boilers thorough inspections performed. Thin pipes and worn refractory renewed. o Soot blowers and air hammers inspected and maintained. o Combustion system thoroughly inspected and worn parts replaced. o Auxiliary burners inspected and serviced. o Hydraulic packs serviced. o Both boiler pressure relief valves serviced. o Common vessels and main valves inspected. o Bag house filters and scrubbers cleaned, inspected and repaired where needed. The program of bags replacement continued. o Ducting and expansion joints inspections and repairs made. o Fly ash and bottom ash conveyors inspected and serviced. o Lime, urea and activated carbon systems cleaned and inspected. o Main fans and pumps inspected and serviced. The main electrical motors have been tested. o The main instrumentation has been calibrated. o Turbine, generator and gearbox serviced. Turbine blading borescope inspection carried out. Generator electrical test performed. o Main electrical systems inspected and tested. | K5: Include summary of key operational and/or maintenance activity undertaken in the year, such as any major component upgrades and/or replacements
A29: Summary of Residue Handling for the reporting year
A31: There are two main sources of residue that arise from the operation of the plant; Incinerator Bottom ash (IBA) (which also includes ferrous metals discharged within the ash), and residues from the flue gas treatment system - known as Air Pollution Control residue (APCr). Residues from the flue gas treatment process (APCr) are discharged into an enclosed system which feed into double-skinned heavy-duty bags prior to removal from site for controlled treatment and disposal. These residues account for around 5% of the total weight of all refuse processed by the facility. The bottom ash produced by the site represents around 10% of the original volume of the refuse processed, and around 20% of its weight. Bottom ash residues are discharged from the lower end of each grate into a water filled ash discharger, where it is quenched and then ejected onto a conveyor system. Larger items are screened out and ferrous metals are removed via magnetic separation. The resulting material is stored in the storage bunkers prior to removal from site for recycling - the storage capacity for bottom ash residues and separated ferrous metals is sufficient to ensure 4 days storage. Collections for delivery to further processing or treatment sites are made on Mondays to Fridays and are scheduled to ensure sufficient storage capacity is maintained at all times. Collections are available at weekends if operational conditions require this facility. Bottom ash is now widely used in the UK and Europe as a substitute for valuable primary aggregate materials in the construction of roads and embankments. Bottom ash from North Midlands Operations Ltd is currently being reprocessed, with additional ferrous and trace metals being removed, and the remaining material being further processed into usable aggregate in a zero to landfill process. | K31: Include in here a summary of residue handling regimes and destinations

Sheet Perf. Form 1
A1: =+'Cover Page'!C39 -> 2022 | B1: Annual Reporting Performance Form 1
A3: =+'Cover Page'!B31 -> Permit EPR/HP3247QS | F3: Operator: | G3: =+'Cover Page'!B37:I37 -> 0
A4: Facility: | B4: =+'Cover Page'!B33:I33 -> Dudley Energy from Waste Facility | F4: Form: | G4: Performance 1
A6: Reporting Period from: | D6: 2022-01-01 | F6: to: | G6: 2022-12-31
A8: =+A1 -> 2022 | B8: Annual Reporting of Waste Disposal and Recovery
A9: Waste Description | C9: Disposal Route(s) | E9: Disposal Tonnes | G9: Recovery Tonnes | I9: % / tonne of waste incinerated
A10: 1) Hazardous Wastes
A11: APC Residues | E11: ='Operational Data'!G31 -> 3109 | G11: 0 | I11: =IF((E11+G11)>0,(E11+G11)/'Operational Data'!$G$18, "-") -> 0.04241415533
A12: IBA | E12: 0 | G12: 0 | I12: =IF((E12+G12)>0,(E12+G12)/'Operational Data'!$G$18, "-") -> -
A13: Total Hazardous Waste | E13: =SUM(E11:F12) -> 3109 | G13: =SUM(G11:H12) -> 0 | I13: =IF((E13+G13)>0,(E13+G13)/'Operational Data'!$G$18, "-") -> 0.04241415533
A15: 2) Non-Hazardous Wastes
A16: IBA | E16: 0 | G16: ='Operational Data'!G32 -> 16013 | I16: =IF((E16+G16)>0,(E16+G16)/'Operational Data'!$G$18, "-") -> 0.2184554099
A17: Ferrous Metal | E17: 0 | G17: ='Operational Data'!G33 -> 1628 | I17: =IF((E17+G17)>0,(E17+G17)/'Operational Data'!$G$18, "-") -> 0.0222097925
A18: Process Water | E18: 0 | G18: 0 | I18: =IF((E18+G18)>0,(E18+G18)/'Operational Data'!$G$18, "-") -> -
I19: =IF((E19+G19)>0,(E19+G19)/'Operational Data'!$G$18, "-") -> -
I20: =IF((E20+G20)>0,(E20+G20)/'Operational Data'!$G$18, "-") -> -
A21: Total Non-Hazardous Waste | E21: =SUM(E16:F20) -> 0 | G21: =SUM(G16:H20) -> 17641 | I21: =IF((E21+G21)>0,(E21+G21)/'Operational Data'!$G$18, "-") -> 0.2406652024
A22: TOTAL WASTE | E22: =+E21+E13 -> 3109 | G22: =+G21+G13 -> 17641 | I22: =IF((E22+G22)>0,(E22+G22)/'Operational Data'!$G$18, "-") -> 0.2830793577
A24: Operator’s comments :
A29: =+A1 -> 2022 | B29: Annual Reporting of Water and Other Raw Material Usage
A30: Raw Material | E30: Usage | G30: Unit | H30: Specific Useage | J30: Unit
A31: Mains Water | E31: =+'Operational Data'!G36 -> 69631 | G31: m3 | H31: =IF(E31>0,E31/'Operational Data'!$G$18,"-") -> 0.9499324702 | J31: m3/te
A32: Total Water | E32: =+'Operational Data'!G37+'Operational Data'!G36 -> 69631 | G32: m3 | H32: =IF(E32>0,E32/'Operational Data'!$G$18,"-") -> 0.9499324702 | J32: m3/te
A33: Urea / Ammonia | E33: ='Operational Data'!G39 -> 169000 | G33: kg | H33: =IF(E33>0,E33/'Operational Data'!$G$18,"-") -> 2.305561998 | J33: kg/te
A34: Activated Carbon | E34: =+'Operational Data'!G40 -> 11500 | G34: kg | H34: =IF(E34>0,E34/'Operational Data'!$G$18,"-") -> 0.1568873549 | J34: kg/te
A35: Lime / hydrated lime / Sodium Bicarb. | E35: =+'Operational Data'!G41 -> 975020 | G35: kg | H35: =IF(E35>0,E35/'Operational Data'!$G$18,"-") -> 13.30159207 | J35: kg/te
A37: Operator’s comments :
A41: =+A29 -> 2022 | B41: Annual Reporting of other performance indicators
A42: Parameter | C42: Results by Line
C43: A1 | D43: A2 | I43: Turbine 1
A44: Operating hours for the year, hours | C44: ='Operational Data'!G50 -> 7983.25 | D44: ='Operational Data'!G51 -> 8084.8 | I44: ='Operational Data'!G53 -> 51016.25
A45: Number of periods of abnormal operation, qty. | C45: 1 | D45: 1
A46: Cumulative hours of abnormal operation for this year, hours | C46: 0.5 | D46: 0.5
A48: Operator’s comments :
A52: Signed: | G52: Date:

Sheet Energy Form 1
A1: =+'Cover Page'!C39 -> 2022 | B1: Annual Reporting of Energy Usage/Export
A3: =+'Cover Page'!B31 -> Permit EPR/HP3247QS | F3: Operator: | G3: =+'Cover Page'!B37:I37 -> 0
A5: Facility: | B5: =+'Cover Page'!B33:I33 -> Dudley Energy from Waste Facility | F5: Form: | G5: Energy 1
A7: Reporting Period from: | D7: =+'Perf. Form 1'!D6:E6 -> 2022-01-01 | F7: to: | G7: =+'Perf. Form 1'!G6:H6 -> 2022-12-31
A9: Energy Source | D9: Energy Usage | F9: Unit | G9: Specific Useage (KWh/tonne incinerated
A10: Electricity Produced | D10: =+'Operational Data'!G21 -> 40862 | F10: MWh | G10: =+'Operational Data'!H21 -> 557.4548778
A11: Electricity Imported | D11: =+'Operational Data'!G24 -> 233 | F11: MWh | G11: =+'Operational Data'!H24 -> 3.178674234
A12: Electricity Exported | D12: =+'Operational Data'!G22 -> 33819 | F12: MWh | G12: =+'Operational Data'!H22 -> 461.3716048
A13: Gas Oil | F13: tonnes
A14: Steam/hot water exported | D14: =+'Operational Data'!G27 -> 0 | F14: GWh | G14: =+'Operational Data'!H27 -> -
A18: Operator’s comments :
A29: Signed: | G29: Date:
C49: Kate Harrop | G49: Quality & Environmental Manager
C53: 2023-01-31

Sheet Permit Compliance
A1: =+'Cover Page'!$B$29 -> Annual Performance Report 2022 | E1: =+'Cover Page'!$B$33 -> Dudley Energy from Waste Facility
A3: Summary of Permit Compliance
A5: Compliance with permit limits for continuously monitored pollutants
A7: The plant met its emission limits as shown in the table below:
A8: Substance | C8: Percentage time compliant during operation | L8: Notes:
C9: Half-hourly limit | F9: Daily limit | L9: Report to 2 decimal places, i.e. xx.xx% Please provide a brief summary of each notification or non-compliance in the table (rather than just referring to notifications that were sent to the Regulator).
A10: Particulates | C10: 1 | F10: 1
A11: Oxides of nitrogen | C11: 0.9998 | F11: 1
A12: Sulphur dioxide | C12: 0.9998 | F12: 1
A13: Carbon monoxide | C13: 0.9992 | F13: 0.989
A14: Total organic carbon | C14: 0.9999 | F14: 1
A15: Hydrogen chloride | C15: 0.9995 | F15: 0.9918
A16: Hydrogen fluoride | C16: 1 | F16: 1
A17: Average | C17: 0.9998 | F17: 0.9973
A19: Summary of any notifications or non-compliances under the permit
A20: Date | B20: Summary of notification or non-compliance [including Line/Reference] | E20: Reason | H20: Measures taken to prevent reoccurrence
A21: 2022-01-13 | B21: NOx 1/2hrly ELV breach (552.19 mg/m3) | E21: Feeder forward limit issues | H21: Feeder limit repaired
A22: 2022-01-13 | B22: VOC 1/2hrly ELV breach (51.02 mg/m3)
A23: 2022-01-13 | B23: CO daily ELV breach (51.94 mg/m3)
A24: 2022-03-09 | B24: NOx 1/2hrly ELV breach (408.85 mg/m3) | E24: Blockage in urea pipework | H24: Cleared blockage
A25: 2022-04-02 | B25: HCL daily ELV breach (11.13 mg/m3) | E25: Poor quality waste | H25: Increase in waste mixing and used oil burner to support combustion
A26: 2022-04-07 | B26: SO2 1/2 hrly ELV breach (285.92 mg/m3) | E26: Poor quality waste | H26: Lime control valves opened
A27: 2022-04-12 | B27: NOx 1/2 hrly ELV breach (419.75 mg/m3) | E27: Complete plant trip due to switching operations by western power distribution | H27: Lime system found to have tripped so put back into service
A28: 2022-04-15 | B28: HCL 1/2 hrly ELV breach (67.26 mg/m3) | E28: Poor quality waste | H28: Increase lime slurry flow & waste mixing
A29: 2022-08-17 | B29: SO2 1/2 hrly ELV breach (241.12 mg/m3)
A30: 2022-08-17 | B30: SO2 1/2 hrly ELV breach (270.2 mg/m3)
A31: 2022-08-19 | B31: HCL 1/2 hrly ELV breach (67.19 mg/m3) | E31: 7 minute stoppage to lime turbine plus acid producing fuel source | H31: Increase running time with reduced HCl setpoint prior to stopping turbine
A32: 2022-09-17 | B32: HCL 1/2 hrly ELV breach (70.93 mg/m3) | E32: Poor quality waste | H32: Lime control valves opened
A33: 2022-10-18 | B33: HCL 1/2 hrly ELV breach (113.05 mg/m3) | E33: Clogged lime turbine | H33: Lime control valves opened initially, unit taken offline to repair
A34: 2022-10-24 | B34: CO daily ELV breach (50.59 mg/m3) | E34: Wet waste causing erratic steam flow | H34: Reduction in steam flow set point to limit waste on grate and increase combustion time for waste
A35: 2022-10-24 | B35: CO 10-min ELV breach
A36: 2022-10-25 | B36: CO 10-min ELV breach
A37: 2022-10-25 | B37: CO daily ELV breach (90.98 mg/m3)
A38: 2022-10-29 | B38: CO daily ELV breach (51.36 mg/m3)
A39: 2022-10-25 | B39: Periodic testing: Stack A1 Breach in metals ELV (0.697mg/m3) | E39: Unclear | H39: Results of periodic testing were not made available to NMOL until 25/01/2023 so no investigation could be undertaken
A40: 2022-11-02 | B40: HCL 1/2 hrly ELV breach (66.58 - 73.22 mg/m3) | E40: Poor quality waste | H40: Stabilise combustion
A41: 2022-12-17 | B41: HCL daily ELV breach (10.3 mg/m3) | E41: Blockage in dilution and lime supply | H41: Backflushed lime supply pipework
A42: 2022-12-18 | B42: HCL 1/2 hrly ELV breach (78.11 mg/m3) | E42: shredded waste causing potential flash burning | H42: Increase waste mixing
A43: 2022-12-19 | B43: HCL 1/2 hrly ELV breach (66.45mg/m3)
A44: 2022-12-19 | B44: HCL 1/2 hrly ELV breach (62.58 mg/m3)
A45: 2022-12-31 | B45: HCL daily ELV breach (12.31 mg/m3) | E45: Flowmeter of lime slurry incorrectly reporting | H45: Repaired
A47: Summary of any complaints received and actions to taken to resolve them.
A48: Date | B48: Summary of complaint [including Line/Reference] | E48: Reason * | H48: Measures taken to prevent reoccurrence
B49: None received in 2022
E54: * including whether substantiated by the operator or the EA

Sheet Improvements
A1: =+'Cover Page'!$B$29 -> Annual Performance Report 2022 | E1: =+'Cover Page'!$B$33 -> Dudley Energy from Waste Facility
A3: Summary of Plant Improvements
A5: Summary of any efficiency improvements that have been completed within the year.
A6: • LED lamp replacement is an ongoing project. • Continued the replacement program of damaged lagging. • See Operational Summary for explanation about limited plant improvement activities in 2022.
A16: Summary of any permit improvement conditions that have been completed within the year and the resulting environmental benefits.
A17: None. IC1-IC5 are currently being worked on - e.g. NOx abatement trials, Hg and D&F testing, calculation of GEE etc. All findings from MESE and NMOL have been handed to Urbaser for completion.
A27: Summary of any changes to the plant or operating techniques which required a variation to the permit and a summary of the resulting environmental impact.
A28: No variations were made to the permit in 2022. However, it should be noted that use of the waste bunker permitted by the 1996 Waste Management Licence (SL 2028) ceased under North Midlands Operations Ltd - as no attempt to transfer it was made.
A38: Summary of any other improvements made to the plant or planned to be made and a summary of the resulting environmental benefits.
A39: • Activated carbon system refurbished to prevent fugitive emissions. • Commissioned reprogramming of lime abatement system shutdown sequence to ensure the system shuts down empty. This reduces the risk of fugitive emissions and reduces chemical consumption.

Sheet Public Liasion
A1: =+'Cover Page'!$B$29 -> Annual Performance Report 2022 | E1: =+'Cover Page'!$B$33 -> Dudley Energy from Waste Facility
A3: Details of Public & Stakeholder Liasion
A5: Summary of events held during the reporting year.
A6: Date | C6: Description
A7: Jan 22 - Oct 22 | C7: MESE conducted monthly meetings with its core stakeholders in order discuss operational, health and safety, and environmental performance.
A9: Nov 22- Dec 22 | C9: NMOL conducted monthly meetings with its core stakeholders in order discuss operational, health and safety, and environmental performance.
A16: List of events planned for next year
A17: Date | C17: Description
A18: 2023 | C18: NMOL will continue to meet with its core stakeholders on a monthly basis.
A20: 2023 | C20: NMOL to launch company website.
A29: If you wish to be involved in the public liasion programme, please contact _________________
C49: Kate Harrop | G49: Quality & Environmental Manager
C53: 2023-01-31

Sheet Residue Quality
A1: =+'Cover Page'!$B$29 -> Annual Performance Report 2022 | E1: =+'Cover Page'!$B$33 -> Dudley Energy from Waste Facility
A3: Residue Quality Monitoring Requirements
A5: Summary of monitoring undertaken and compliance
A6: Ash monitoring has been undertaken in line with the permit. IBA has been sampled on a monthly basis to inform hazard assessment, while APCr has been monitored on a quarterly basis
A13: Commentary on any specific events
A14: Date & Event | C14: Description
A27: Residue Quality Monitoring Results
A28: Parameter (unit) | C28: Limit | D28: Normal Operation
D29: Bottom ash | F29: APC Residues
A30: Loss on Ignition (average %) | C30: <5% | D30: 7.28
A31: Total Organic Carbon (average %) | C31: <3% | D31: 1.03
A32: No. of Assessments Undertaken | C32: --- | D32: 6 | F32: 4
A33: No. of Hazardous Results | C33: --- | D33: 0
A35: Comments :
C49: Kate Harrop | G49: Quality & Environmental Manager
C53: 2023-01-31

Sheet Water
A1: =+'Cover Page'!$B$29 -> Annual Performance Report 2022 | E1: =+'Cover Page'!$B$33 -> Dudley Energy from Waste Facility
A3: Emissions to Water
A5: Summary of monitoring undertaken and compliance
A6: N/A
A13: Commentary on any specific events
A14: Date & Event | C14: Description
A22: Emissions to Water / Sewer
A23: Parameter | D23: Monitoring Frequency | G23: Limit | H23: Target | I23: Max. | J23: Average
C49: Kate Harrop | G49: Quality & Environmental Manager
C53: 2023-01-31

Sheet Air (periodic)
A1: =+'Cover Page'!$B$29 -> Annual Performance Report 2022 | E1: =+'Cover Page'!$B$33 -> Dudley Energy from Waste Facility
A3: Emissions to Air (periodically monitored)
A5: Summary of monitoring undertaken, standards used and compliance | M5: Notes:
A6: Quarterly monitoring undertaken in line with permit. | M6: Template may require adjustment for any bespoke monitoring requirements of permit.
A9: Results of emissions to air that are periodically monitored
A10: Substance | C10: Ref. Period | D10: Emission Limit Value | F10: Average | M10: User to add additional tables as necessary, depending on whether quarterly or bi-annual reporting is required for the compliance year
F11: A1 | G11: A2
A12: Hydrogen fluoride | C12: 1 hr | D12: 2 mg/m3 | F12: 0.25 | G12: 0.25
A13: Cd and Th and their compounds | C13: 6-8hrs | D13: 0.05 mg/m3 | F13: 0.001 | G13: 0.001
A14: Hg and its compounds | C14: 6-8hrs | D14: 0.05 mg/m3 | F14: 0.008 | G14: 0.002
A15: Sb, As, Pb, Cr, Co, Cu, Mn, Ni, V and their compounds | C15: 6-8hrs | D15: 0.5 mg/m3 | F15: 0.39 | G15: 0.07
A16: Dioxins & Furans (I-TEQ) | C16: 6-8hrs | D16: 0.1 ng/m3 | F16: 0.01 | G16: 0.02
A17: PCBs (WHO-TEQ Humans / Mammals) | C17: 6-8hrs | D17: None set ng/m3 | F17: 0.0016 | G17: 0.00095
A18: PCBs (WHO-TEQ Fish) | C18: 6-8hrs | D18: None set ng/m3 | F18: 0.0001 | G18: 7e-05
A19: PCBs (WHO-TEQ Birds) | C19: 6-8hrs | D19: None set ng/m3 | F19: 0.015 | G19: 0.0027
A20: Dioxins & Furans (WHO-TEQ Humans / Mammals) | C20: 6-8hrs | D20: None set ng/m3 | F20: 0.011 | G20: 0.022
A21: Dioxins & Furans (WHO-TEQ Fish) | C21: 6-8hrs | D21: None set ng/m3 | F21: 0.013 | G21: 0.025
A22: Dioxins & Furans (WHO-TEQ Birds) | C22: 6-8hrs | D22: None set ng/m3 | F22: 0.02 | G22: 0.04
A23: Anthanthrene | C23: 6-8hrs | D23: None set µg/m3 | F23: <0.0084 | G23: <0.0078
A24: Benzo(a)anthracene | C24: 6-8hrs | D24: None set µg/m3 | F24: <0.0084 | G24: <0.0078
A25: Benzo(a)pyrene | C25: 6-8hrs | D25: None set µg/m3 | F25: <0.0084 | G25: <0.0078
A26: Benzo(b)fluoranthene | C26: 6-8hrs | D26: None set µg/m3 | F26: <0.0084 | G26: <0.0078
A27: Benzo(b)naptho(2,1-d) thiophene | C27: 6-8hrs | D27: None set µg/m3 | F27: 0.0129 | G27: 0.022
A28: Benzo(c)phenanthrene | C28: 6-8hrs | D28: None set µg/m3 | F28: <0.0084 | G28: <0.0078
A29: Benzo(ghi)perylene | C29: 6-8hrs | D29: None set µg/m3 | F29: 0.0091 | G29: <0.0078
A30: Benzo(k)fluoranthene | C30: 6-8hrs | D30: None set µg/m3 | F30: <0.0084 | G30: <0.0078
A31: Cholanthrene | C31: 6-8hrs | D31: None set µg/m3 | F31: <0.0084 | G31: <0.0078
A32: Chrysene | C32: 6-8hrs | D32: None set µg/m3 | F32: 0.0132 | G32: <0.0078
A33: Cyclopenta(cd)pyrene | C33: 6-8hrs | D33: None set µg/m3 | F33: 0.0218 | G33: <0.0078
A34: Dibenzo(ai)pyrene | C34: 6-8hrs | D34: None set µg/m3 | F34: <0.0084 | G34: <0.0078
A35: Dibenzo(ah)anthracene | C35: 6-8hrs | D35: None set µg/m3 | F35: <0.0084 | G35: <0.0078
A36: Fluoranthene | C36: 6-8hrs | D36: None set µg/m3 | F36: 0.157 | G36: 0.038
A37: Indeno(123-cd) pyrene | C37: 6-8hrs | D37: None set µg/m3 | F37: <0.0084 | G37: <0.0078
A38: Naphthalene | C38: 6-8hrs | D38: None set µg/m3 | F38: 0.29 | G38: 0.32
A39: Comments :
C49: Kate Harrop | G49: Quality & Environmental Manager
C53: 2023-01-31

Sheet Air (CEMS)
A1: =+'Cover Page'!$B$29 -> Annual Performance Report 2022 | I1: =+'Cover Page'!$B$33 -> Dudley Energy from Waste Facility
A3: Emissions to Air (continously monitored)
P4: Notes:
A5: Summary of monitoring undertaken, standards used and compliance | P5: Template may require adjustment for any bespoke monitoring requirements of permit
P6: Report to 2 decimal places, i.e. xx.xx%
A11: Results of emissions to air that are continuously monitored (maximum and average values for each line)
A12: Substance | B12: Reference Period | C12: Emission Limit Value | D12: A1 | F12: A2
D13: Max. | E13: Avg. | F13: Max. | G13: Avg.
A14: Oxides of nitrogen | B14: Daily mean | C14: 200 mg/m3 | D14: =NOx!O19 -> 196 | E14: =NOx!N19 -> 178.0833333 | F14: =NOx!O34 -> 196 | G14: =NOx!N34 -> 179.0833333
B15: ½ hourly mean | C15: 400 mg/m3 | D15: =NOx!M19 -> 552 | E15: =NOx!L19 -> 178.25 | F15: =NOx!M34 -> 358 | G15: =NOx!L34 -> 178.9166667
A16: Particulates | B16: Daily mean | C16: 10 mg/m3 | D16: =Particulates!O19 -> 2 | E16: =Particulates!N19 -> 0.1776356499 | F16: =Particulates!O34 -> 7 | G16: =Particulates!N34 -> 1.383333333
B17: ½ hourly mean | C17: 30 mg/m3 | D17: =Particulates!M19 -> 28 | E17: =Particulates!L19 -> 0.3333333333 | F17: =Particulates!M34 -> 45 | G17: =Particulates!L34 -> 1.333333333
A18: Total Organic Carbon | B18: Daily mean | C18: 10 mg/m3 | D18: =TOC!O19 -> 2 | E18: =TOC!N19 -> 1 | F18: =TOC!O34 -> 2 | G18: =TOC!N34 -> 1
B19: ½ hourly mean | C19: 20 mg/m3 | D19: =TOC!M19 -> 51 | E19: =TOC!L19 -> 0.8333333333 | F19: =TOC!M34 -> 29 | G19: =TOC!L34 -> 1
A20: Hydrogen chloride | B20: Daily mean | C20: 10 mg/m3 | D20: =HCl!O19 -> 13 | E20: =HCl!N19 -> 6.4575 | F20: =HCl!O34 -> 10 | G20: =HCl!N34 -> 6.008333333
B21: ½ hourly mean | C21: 60 mg/m3 | D21: =HCl!M19 -> 113 | E21: =HCl!L19 -> 6.5 | F21: =HCl!M34 -> 67 | G21: =HCl!L34 -> 6
A22: Sulphur dioxide | B22: Daily mean | C22: 50 mg/m3 | D22: ='SO2'!O19 -> 49 | E22: ='SO2'!N19 -> 12.525 | F22: ='SO2'!O34 -> 33 | G22: ='SO2'!N34 -> 9.079259719
B23: ½ hourly mean | C23: 200 mg/m3 | D23: ='SO2'!M19 -> 286 | E23: ='SO2'!L19 -> 12.83333333 | F23: ='SO2'!M34 -> 270 | G23: ='SO2'!L34 -> 9.166666667
A24: Carbon monoxide | B24: Daily mean | C24: 50 mg/m3 | D24: ='CO 95% 10 min'!Q19 -> 74 | E24: ='CO 95% 10 min'!P19 -> 7.430945391 | F24: ='CO 95% 10 min'!Q34 -> 122 | G24: ='CO 95% 10 min'!P34 -> 10.80309333
B25: 95%ile 10-min avg * | C25: 150 mg/m3 * | D25: ='CO 95% 10 min'!M19 -> 13.025 | E25: ='CO 95% 10 min'!N19 -> 7.5 | F25: ='CO 95% 10 min'!M34 -> 24.07333333 | G25: ='CO 95% 10 min'!N34 -> 12.41666667
A26: Ammonia | B26: Daily mean | C26: No limit set | D26: ='NH3'!O19 -> 10 | E26: ='NH3'!N19 -> 5.513573782 | F26: ='NH3'!O34 -> 23 | G26: ='NH3'!N34 -> 4.357322747
A27: * = delete or amend as appropriate
A28: Comments :
C49: Kate Harrop | G49: Quality & Environmental Manager
C53: 2023-01-31

Sheet HCl
A1: =+'Cover Page'!$B$29 -> Annual Performance Report 2022 | E1: =+'Cover Page'!$B$33 -> Dudley Energy from Waste Facility
A3: Monitoring of Hydrogen Chloride emissions | D3: Whole Installation | G3: See Notes in Cell Q3 | J3: =+A3 -> Monitoring of Hydrogen Chloride emissions | N3: Per Combustion Line | Q3: Notes:
Q4: User to add logic to complete Whole installation, Table A5:G18. From the data in Per Combustion Line, Table J6:O79, subject to No. of lines installed
A5: mg/Nm3 | B5: 1/2 Hourly Reference Periods | E5: Daily Reference Periods
A6: =+'Cover Page'!C39 -> 2022 | B6: 1/2 hourly HCl ELV | C6: Monthly 1/2 hourly mean | D6: Highest 1/2 hourly maximum | E6: Daily HCl ELV | F6: Monthly daily mean | G6: Highest daily maximum | J6: =+A6 -> 2022 | K6: mg/Nm3 | L6: Monthly 1/2 hourly mean | M6: Monthly 1/2 hourly maximum | N6: Monthly daily mean | O6: Monthly daily maximum
A7: Jan | B7: 60 | C7: =AVERAGE(L7,L22) -> 5 | D7: =MAX(M7,M22) -> 30 | E7: 10 | F7: =AVERAGE(N7,N22) -> 4.87 | G7: =MAX(O7,O22) -> 9 | J7: A1 | K7: Jan | L7: 6 | M7: 27 | N7: 5.62 | O7: 9
A8: Feb | B8: 60 | C8: =AVERAGE(L8,L23) -> 4.5 | D8: =MAX(M8,M23) -> 51 | E8: 10 | F8: =AVERAGE(N8,N23) -> 4.835 | G8: =MAX(O8,O23) -> 7 | K8: Feb | L8: 5 | M8: 51 | N8: 5.35 | O8: 7
A9: Mar | B9: 60 | C9: 7.5 | D9: 44 | E9: 10 | F9: 7.14 | G9: 10 | K9: Mar | L9: 8 | M9: 41 | N9: 7.67 | O9: 10 | Q9: Whole Installation table A5:G18:
A10: Apr | B10: 60 | C10: 7 | D10: 67 | E10: 10 | F10: 6.865 | G10: 11 | K10: Apr | L10: 7 | M10: 54 | N10: 7.2 | O10: 11 | Q10: Mean: for 1/2 hourly and daily periods calculate mean of values across all operational combustion lines for the month
A11: May | B11: 60 | C11: 6 | D11: 41 | E11: 10 | F11: 5.81 | G11: 7 | K11: May | L11: 6 | M11: 27 | N11: 5.55 | O11: 7
A12: Jun | B12: 60 | C12: 7 | D12: 46 | E12: 10 | F12: 6.595 | G12: 8 | K12: Jun | L12: 7 | M12: 46 | N12: 6.86 | O12: 8
A13: Jul | B13: 60 | C13: 6.5 | D13: 58 | E13: 10 | F13: 6.625 | G13: 9 | K13: Jul | L13: 7 | M13: 50 | N13: 6.74 | O13: 9 | Q13: Maximum: for 1/2 hourly and daily periods use the highest value across all operational combustion lines for the month
A14: Aug | B14: 60 | C14: 6 | D14: 67 | E14: 10 | F14: 6.415 | G14: 8 | K14: Aug | L14: 6 | M14: 36 | N14: 6.5 | O14: 7
A15: Sep | B15: 60 | C15: 7 | D15: 71 | E15: 10 | F15: 6.74 | G15: 9 | K15: Sep | L15: 7 | M15: 71 | N15: 6.76 | O15: 9
A16: Oct | B16: 60 | C16: 7 | D16: 113 | E16: 10 | F16: 7.025 | G16: 13 | K16: Oct | L16: 7 | M16: 113 | N16: 7.17 | O16: 13
A17: Nov | B17: 60 | C17: 5.5 | D17: 73 | E17: 10 | F17: 5.385 | G17: 8 | K17: Nov | L17: 6 | M17: 73 | N17: 5.48 | O17: 8
A18: Dec | B18: 60 | C18: 6 | D18: 78 | E18: 10 | F18: 6.49 | G18: 12 | K18: Dec | L18: 6 | M18: 78 | N18: 6.59 | O18: 12
K19: Annual | L19: =AVERAGE(L7:L18) -> 6.5 | M19: =MAX(M7:M18) -> 113 | N19: =AVERAGE(N7:N18) -> 6.4575 | O19: =MAX(O7:O18) -> 13
J21: =+A6 -> 2022 | K21: mg/Nm3 | L21: Monthly 1/2 hourly mean | M21: Monthly 1/2 hourly maximum | N21: Monthly daily mean | O21: Monthly daily maximum
J22: A2 | K22: Jan | L22: 4 | M22: 30 | N22: 4.12 | O22: 6
K23: Feb | L23: 4 | M23: 27 | N23: 4.32 | O23: 6
K24: Mar | L24: 7 | M24: 44 | N24: 6.61 | O24: 8
K25: Apr | L25: 7 | M25: 67 | N25: 6.53 | O25: 10
K26: May | L26: 6 | M26: 41 | N26: 6.07 | O26: 7
K27: Jun | L27: 7 | M27: 28 | N27: 6.33 | O27: 8
K28: Jul | L28: 6 | M28: 58 | N28: 6.51 | O28: 8
K29: Aug | L29: 6 | M29: 67 | N29: 6.33 | O29: 8
K30: Sep | L30: 7 | M30: 30 | N30: 6.72 | O30: 8
K31: Oct | L31: 7 | M31: 54 | N31: 6.88 | O31: 10
K32: Nov | L32: 5 | M32: 30 | N32: 5.29 | O32: 8
K33: Dec | L33: 6 | M33: 32 | N33: 6.39 | O33: 9
K34: Annual | L34: =AVERAGE(L22:L33) -> 6 | M34: =MAX(M22:M33) -> 67 | N34: =AVERAGE(N22:N33) -> 6.008333333 | O34: =MAX(O22:O33) -> 10
C43: 01179 372 811
C45: emily.hingston@sol-environment.co.uk
A48: Comments :

Sheet SO2
A1: =+'Cover Page'!$B$29 -> Annual Performance Report 2022 | E1: =+'Cover Page'!$B$33 -> Dudley Energy from Waste Facility
A3: Monitoring of Sulphur dioxide emissions | D3: Whole Installation | G3: See Notes in Cell Q3 | J3: =+A3 -> Monitoring of Sulphur dioxide emissions | N3: Per Combustion Line | Q3: Notes:
Q4: User to add logic to complete Whole installation, Table A5:G18. From the data in Per Combustion Line, Table J6:O79, subject to No. of lines installed
A5: mg/Nm3 | B5: 1/2 Hourly Reference Periods | E5: Daily Reference Periods
A6: =+'Cover Page'!C39 -> 2022 | B6: 1/2 hourly SO2 ELV | C6: Monthly 1/2 hourly mean | D6: Highest 1/2 hourly maximum | E6: Daily SO2 ELV | F6: Monthly daily mean | G6: Highest daily maximum | J6: =+A6 -> 2022 | K6: mg/Nm3 | L6: Monthly 1/2 hourly mean | M6: Monthly 1/2 hourly maximum | N6: Monthly daily mean | O6: Monthly daily maximum
A7: Jan | B7: 200 | C7: =AVERAGE(L7,L22) -> 23 | D7: =MAX(M7,M22) -> 184 | E7: 50 | F7: =AVERAGE(N7,N22) -> 23.2683871 | G7: =MAX(O7,O22) -> 49 | J7: A1 | K7: Jan | L7: 27 | M7: 184 | N7: 27.44 | O7: 49
A8: Feb | B8: 200 | C8: =AVERAGE(L8,L23) -> 25 | D8: =MAX(M8,M23) -> 184 | E8: 50 | F8: =AVERAGE(N8,N23) -> 25.51571429 | G8: =MAX(O8,O23) -> 41 | K8: Feb | L8: 31 | M8: 184 | N8: 31.46 | O8: 41
A9: Mar | B9: 200 | C9: 13.5 | D9: 132 | E9: 50 | F9: 13.15870968 | G9: 31 | K9: Mar | L9: 19 | M9: 132 | N9: 18.64 | O9: 31 | Q9: Whole Installation table A5:G18:
A10: Apr | B10: 200 | C10: 15.5 | D10: 286 | E10: 50 | F10: 15.03 | G10: 32 | K10: Apr | L10: 21 | M10: 286 | N10: 20.56 | O10: 32 | Q10: Mean: for 1/2 hourly and daily periods calculate mean of values across all operational combustion lines for the month
A11: May | B11: 200 | C11: 14.5 | D11: 93 | E11: 50 | F11: 12.23 | G11: 22 | K11: May | L11: 19 | M11: 93 | N11: 15.16 | O11: 22
A12: Jun | B12: 200 | C12: 12.5 | D12: 94 | E12: 50 | F12: 12.525 | G12: 29 | K12: Jun | L12: 13 | M12: 94 | N12: 12.93 | O12: 29
A13: Jul | B13: 200 | C13: 5.5 | D13: 128 | E13: 50 | F13: 5.243461538 | G13: 12 | K13: Jul | L13: 4 | M13: 128 | N13: 4.41 | O13: 10 | Q13: Maximum: for 1/2 hourly and daily periods use the highest value across all operational combustion lines for the month
A14: Aug | B14: 200 | C14: 4 | D14: 270 | E14: 50 | F14: 4.366666667 | G14: 18 | K14: Aug | L14: 5 | M14: 241 | N14: 5.4 | O14: 17
A15: Sep | B15: 200 | C15: 4.5 | D15: 79 | E15: 50 | F15: 4.372142857 | G15: 16 | K15: Sep | L15: 5 | M15: 79 | N15: 4.53 | O15: 16
A16: Oct | B16: 200 | C16: 3.5 | D16: 90 | E16: 50 | F16: 3.27 | G16: 7 | K16: Oct | L16: 2 | M16: 90 | N16: 1.86 | O16: 5
A17: Nov | B17: 200 | C17: 4 | D17: 49 | E17: 50 | F17: 3.883333333 | G17: 12 | K17: Nov | L17: 2 | M17: 44 | N17: 1.6 | O17: 8
A18: Dec | B18: 200 | C18: 6.5 | D18: 184 | E18: 50 | F18: 6.762142857 | G18: 28 | K18: Dec | L18: 6 | M18: 184 | N18: 6.31 | O18: 28
K19: Annual | L19: =AVERAGE(L7:L18) -> 12.83333333 | M19: =MAX(M7:M18) -> 286 | N19: =AVERAGE(N7:N18) -> 12.525 | O19: =MAX(O7:O18) -> 49
J21: =+A6 -> 2022 | K21: mg/Nm3 | L21: Monthly 1/2 hourly mean | M21: Monthly 1/2 hourly maximum | N21: Monthly daily mean | O21: Monthly daily maximum
J22: A2 | K22: Jan | L22: 19 | M22: 114 | N22: 19.09677419 | O22: 33
K23: Feb | L23: 19 | M23: 116 | N23: 19.57142857 | O23: 30
K24: Mar | L24: 8 | M24: 49 | N24: 7.677419355 | O24: 15
K25: Apr | L25: 10 | M25: 52 | N25: 9.5 | O25: 16
K26: May | L26: 10 | M26: 60 | N26: 9.3 | O26: 16
K27: Jun | L27: 12 | M27: 27 | N27: 12.12 | O27: 18
K28: Jul | L28: 7 | M28: 54 | N28: 6.076923077 | O28: 12
K29: Aug | L29: 3 | M29: 270 | N29: 3.333333333 | O29: 18
K30: Sep | L30: 4 | M30: 62 | N30: 4.214285714 | O30: 14
K31: Oct | L31: 5 | M31: 67 | N31: 4.68 | O31: 7
K32: Nov | L32: 6 | M32: 49 | N32: 6.166666667 | O32: 12
K33: Dec | L33: 7 | M33: 103 | N33: 7.214285714 | O33: 19
K34: Annual | L34: =AVERAGE(L22:L33) -> 9.166666667 | M34: =MAX(M22:M33) -> 270 | N34: =AVERAGE(N22:N33) -> 9.079259719 | O34: =MAX(O22:O33) -> 33
C43: 01179 372 811
C45: emily.hingston@sol-environment.co.uk
A48: Comments :

Sheet NOx
A1: =+'Cover Page'!$B$29 -> Annual Performance Report 2022 | E1: =+'Cover Page'!$B$33 -> Dudley Energy from Waste Facility
A3: Monitoring of Oxides of Nitrogen emissions | D3: Whole Installation | G3: See Notes in Cell Q3 | J3: =+A3 -> Monitoring of Oxides of Nitrogen emissions | N3: Per Combustion Line | Q3: Notes:
Q4: User to add logic to complete Whole installation, Table A5:G18. From the data in Per Combustion Line, Table J6:O79, subject to No. of lines installed
A5: mg/Nm3 | B5: 1/2 Hourly Reference Periods | E5: Daily Reference Periods
A6: =+'Cover Page'!C39 -> 2022 | B6: 1/2 hourly NOx ELV | C6: Monthly 1/2 hourly mean | D6: Highest 1/2 hourly maximum | E6: Daily NOx ELV | F6: Monthly daily mean | G6: Highest daily maximum | J6: =+A6 -> 2022 | K6: mg/Nm3 | L6: Monthly 1/2 hourly mean | M6: Monthly 1/2 hourly maximum | N6: Monthly daily mean | O6: Monthly daily maximum
A7: Jan | B7: 400 | C7: =AVERAGE(L7,L22) -> 180.5 | D7: =MAX(M7,M22) -> 552 | E7: 200 | F7: =AVERAGE(N7,N22) -> 180 | G7: =MAX(O7,O22) -> 196 | J7: A1 | K7: Jan | L7: 180 | M7: 552 | N7: 180 | O7: 188
A8: Feb | B8: 400 | C8: =AVERAGE(L8,L23) -> 179.5 | D8: =MAX(M8,M23) -> 275 | E8: 200 | F8: =AVERAGE(N8,N23) -> 179.5 | G8: =MAX(O8,O23) -> 184 | K8: Feb | L8: 179 | M8: 275 | N8: 180 | O8: 184
A9: Mar | B9: 400 | C9: 179 | D9: 409 | E9: 200 | F9: 177 | G9: 189 | K9: Mar | L9: 178 | M9: 409 | N9: 177 | O9: 189 | Q9: Whole Installation table A5:G18:
A10: Apr | B10: 400 | C10: 181 | D10: 420 | E10: 200 | F10: 180 | G10: 189 | K10: Apr | L10: 181 | M10: 420 | N10: 180 | O10: 189 | Q10: Mean: for 1/2 hourly and daily periods calculate mean of values across all operational combustion lines for the month
A11: May | B11: 400 | C11: 179.5 | D11: 295 | E11: 200 | F11: 180 | G11: 187 | K11: May | L11: 180 | M11: 229 | N11: 180 | O11: 182
A12: Jun | B12: 400 | C12: 180 | D12: 265 | E12: 200 | F12: 180 | G12: 182 | K12: Jun | L12: 180 | M12: 265 | N12: 180 | O12: 182
A13: Jul | B13: 400 | C13: 180 | D13: 303 | E13: 200 | F13: 179.5 | G13: 183 | K13: Jul | L13: 180 | M13: 245 | N13: 179 | O13: 181 | Q13: Maximum: for 1/2 hourly and daily periods use the highest value across all operational combustion lines for the month
A14: Aug | B14: 400 | C14: 166 | D14: 273 | E14: 200 | F14: 169.5 | G14: 181 | K14: Aug | L14: 166 | M14: 248 | N14: 166 | O14: 181
A15: Sep | B15: 400 | C15: 179 | D15: 358 | E15: 200 | F15: 179.5 | G15: 187 | K15: Sep | L15: 180 | M15: 252 | N15: 179 | O15: 181
A16: Oct | B16: 400 | C16: 180 | D16: 304 | E16: 200 | F16: 180 | G16: 183 | K16: Oct | L16: 180 | M16: 195 | N16: 179 | O16: 180
A17: Nov | B17: 400 | C17: 180.5 | D17: 342 | E17: 200 | F17: 180 | G17: 196 | K17: Nov | L17: 180 | M17: 307 | N17: 180 | O17: 196
A18: Dec | B18: 400 | C18: 178 | D18: 319 | E18: 200 | F18: 178 | G18: 187 | K18: Dec | L18: 175 | M18: 241 | N18: 177 | O18: 180
K19: Annual | L19: =AVERAGE(L7:L18) -> 178.25 | M19: =MAX(M7:M18) -> 552 | N19: =AVERAGE(N7:N18) -> 178.0833333 | O19: =MAX(O7:O18) -> 196
J21: =+A6 -> 2022 | K21: mg/Nm3 | L21: Monthly 1/2 hourly mean | M21: Monthly 1/2 hourly maximum | N21: Monthly daily mean | O21: Monthly daily maximum
J22: A2 | K22: Jan | L22: 181 | M22: 307 | N22: 180 | O22: 196
K23: Feb | L23: 180 | M23: 263 | N23: 179 | O23: 184
K24: Mar | L24: 180 | M24: 309 | N24: 177 | O24: 183
K25: Apr | L25: 181 | M25: 287 | N25: 180 | O25: 182
K26: May | L26: 179 | M26: 295 | N26: 180 | O26: 187
K27: Jun | L27: 180 | M27: 228 | N27: 180 | O27: 181
K28: Jul | L28: 180 | M28: 303 | N28: 180 | O28: 183
K29: Aug | L29: 166 | M29: 273 | N29: 173 | O29: 180
K30: Sep | L30: 178 | M30: 358 | N30: 180 | O30: 187
K31: Oct | L31: 180 | M31: 304 | N31: 181 | O31: 183
K32: Nov | L32: 181 | M32: 342 | N32: 180 | O32: 186
K33: Dec | L33: 181 | M33: 319 | N33: 179 | O33: 187
K34: Annual | L34: =AVERAGE(L22:L33) -> 178.9166667 | M34: =MAX(M22:M33) -> 358 | N34: =AVERAGE(N22:N33) -> 179.0833333 | O34: =MAX(O22:O33) -> 196
C43: 01179 372 811
C45: emily.hingston@sol-environment.co.uk
A48: Comments :

Sheet TOC
A1: =+'Cover Page'!$B$29 -> Annual Performance Report 2022 | E1: =+'Cover Page'!$B$33 -> Dudley Energy from Waste Facility
A3: Monitoring of Total organic carbon emissions | D3: Whole Installation | G3: See Notes in Cell Q3 | J3: =+A3 -> Monitoring of Total organic carbon emissions | N3: Per Combustion Line | Q3: Notes:
Q4: User to add logic to complete Whole installation, Table A5:G18. From the data in Per Combustion Line, Table J6:O79, subject to No. of lines installed
A5: mg/Nm3 | B5: 1/2 Hourly Reference Periods | E5: Daily Reference Periods
A6: =+'Cover Page'!C39 -> 2022 | B6: 1/2 hourly TOC ELV | C6: Monthly 1/2 hourly mean | D6: Highest 1/2 hourly maximum | E6: Daily TOC ELV | F6: Monthly daily mean | G6: Highest daily maximum | J6: =+A6 -> 2022 | K6: mg/Nm3 | L6: Monthly 1/2 hourly mean | M6: Monthly 1/2 hourly maximum | N6: Monthly daily mean | O6: Monthly daily maximum
A7: Jan | B7: 20 | C7: =AVERAGE(L7,L22) -> 0.5 | D7: =MAX(M7,M22) -> 51 | E7: 10 | F7: =AVERAGE(N7,N22) -> 1 | G7: =MAX(O7,O22) -> 2 | J7: A1 | K7: Jan | L7: 0 | M7: 51 | N7: 1 | O7: 2
A8: Feb | B8: 20 | C8: =AVERAGE(L8,L23) -> 1 | D8: =MAX(M8,M23) -> 14 | E8: 10 | F8: =AVERAGE(N8,N23) -> 1 | G8: =MAX(O8,O23) -> 2 | K8: Feb | L8: 1 | M8: 9 | N8: 1 | O8: 1
A9: Mar | B9: 20 | C9: 1 | D9: 7 | E9: 10 | F9: 1 | G9: 1 | K9: Mar | L9: 1 | M9: 7 | N9: 1 | O9: 1 | Q9: Whole Installation table A5:G18:
A10: Apr | B10: 20 | C10: 1 | D10: 6 | E10: 10 | F10: 1 | G10: 1 | K10: Apr | L10: 1 | M10: 6 | N10: 1 | O10: 1 | Q10: Mean: for 1/2 hourly and daily periods calculate mean of values across all operational combustion lines for the month
A11: May | B11: 20 | C11: 0.5 | D11: 11 | E11: 10 | F11: 1 | G11: 2 | K11: May | L11: 0 | M11: 11 | N11: 1 | O11: 1
A12: Jun | B12: 20 | C12: 1 | D12: 7 | E12: 10 | F12: 1 | G12: 1 | K12: Jun | L12: 1 | M12: 4 | N12: 1 | O12: 1
A13: Jul | B13: 20 | C13: 1 | D13: 8 | E13: 10 | F13: 1 | G13: 2 | K13: Jul | L13: 1 | M13: 8 | N13: 1 | O13: 2 | Q13: Maximum: for 1/2 hourly and daily periods use the highest value across all operational combustion lines for the month
A14: Aug | B14: 20 | C14: 1 | D14: 20 | E14: 10 | F14: 1 | G14: 2 | K14: Aug | L14: 1 | M14: 7 | N14: 1 | O14: 1
A15: Sep | B15: 20 | C15: 1 | D15: 16 | E15: 10 | F15: 1 | G15: 2 | K15: Sep | L15: 1 | M15: 9 | N15: 1 | O15: 1
A16: Oct | B16: 20 | C16: 1 | D16: 23 | E16: 10 | F16: 1 | G16: 2 | K16: Oct | L16: 1 | M16: 14 | N16: 1 | O16: 2
A17: Nov | B17: 20 | C17: 1 | D17: 29 | E17: 10 | F17: 1 | G17: 2 | K17: Nov | L17: 1 | M17: 14 | N17: 1 | O17: 1
A18: Dec | B18: 20 | C18: 1 | D18: 6 | E18: 10 | F18: 1 | G18: 2 | K18: Dec | L18: 1 | M18: 2 | N18: 1 | O18: 1
K19: Annual | L19: =AVERAGE(L7:L18) -> 0.8333333333 | M19: =MAX(M7:M18) -> 51 | N19: =AVERAGE(N7:N18) -> 1 | O19: =MAX(O7:O18) -> 2
J21: =+A6 -> 2022 | K21: mg/Nm3 | L21: Monthly 1/2 hourly mean | M21: Monthly 1/2 hourly maximum | N21: Monthly daily mean | O21: Monthly daily maximum
J22: A2 | K22: Jan | L22: 1 | M22: 4 | N22: 1 | O22: 1
K23: Feb | L23: 1 | M23: 14 | N23: 1 | O23: 2
K24: Mar | L24: 1 | M24: 6 | N24: 1 | O24: 1
K25: Apr | L25: 1 | M25: 2 | N25: 1 | O25: 1
K26: May | L26: 1 | M26: 6 | N26: 1 | O26: 2
K27: Jun | L27: 1 | M27: 7 | N27: 1 | O27: 1
K28: Jul | L28: 1 | M28: 5 | N28: 1 | O28: 1
K29: Aug | L29: 1 | M29: 20 | N29: 1 | O29: 2
K30: Sep | L30: 1 | M30: 16 | N30: 1 | O30: 2
K31: Oct | L31: 1 | M31: 23 | N31: 1 | O31: 2
K32: Nov | L32: 1 | M32: 29 | N32: 1 | O32: 2
K33: Dec | L33: 1 | M33: 6 | N33: 1 | O33: 2
K34: Annual | L34: =AVERAGE(L22:L33) -> 1 | M34: =MAX(M22:M33) -> 29 | N34: =AVERAGE(N22:N33) -> 1 | O34: =MAX(O22:O33) -> 2
C43: 01179 372 811
C45: emily.hingston@sol-environment.co.uk
A48: Comments :

Sheet Particulates
A1: =+'Cover Page'!$B$29 -> Annual Performance Report 2022 | E1: =+'Cover Page'!$B$33 -> Dudley Energy from Waste Facility
A3: Monitoring of Particulate matter emissions | D3: Whole Installation | G3: See Notes in Cell Q3 | J3: =+A3 -> Monitoring of Particulate matter emissions | N3: Per Combustion Line | Q3: Notes:
Q4: User to add logic to complete Whole installation, Table A5:G18. From the data in Per Combustion Line, Table J6:O79, subject to No. of lines installed
A5: mg/Nm3 | B5: 1/2 Hourly Reference Periods | E5: Daily Reference Periods
A6: =+'Cover Page'!C39 -> 2022 | B6: 1/2 hourly PM ELV | C6: Monthly 1/2 hourly mean | D6: Highest 1/2 hourly maximum | E6: Daily PM ELV | F6: Monthly daily mean | G6: Highest daily maximum | J6: =+A6 -> 2022 | K6: mg/Nm3 | L6: Monthly 1/2 hourly mean | M6: Monthly 1/2 hourly maximum | N6: Monthly daily mean | O6: Monthly daily maximum
A7: Jan | B7: 30 | C7: =AVERAGE(L7,L22) -> 1 | D7: =MAX(M7,M22) -> 7 | E7: 10 | F7: =AVERAGE(N7,N22) -> 0.65 | G7: =MAX(O22) -> 2 | J7: A1 | K7: Jan | L7: 1 | M7: 7 | N7: 0.3 | O7: 2
A8: Feb | B8: 30 | C8: =AVERAGE(L8,L23) -> 0.5 | D8: =MAX(M8,M23) -> 6 | E8: 10 | F8: =AVERAGE(N8,N23) -> 0.5892857143 | G8: =MAX(O23) -> 1 | K8: Feb | L8: 0 | M8: 6 | N8: 0.1785714286 | O8: 1
A9: Mar | B9: 30 | C9: 1 | D9: 28 | E9: 10 | F9: 0.6935483871 | G9: 2 | K9: Mar | L9: 1 | M9: 28 | N9: 0.3870967742 | O9: 2 | Q9: Whole Installation table A5:G18:
A10: Apr | B10: 30 | C10: 0.5 | D10: 27 | E10: 10 | F10: 0.5833333333 | G10: 2 | K10: Apr | L10: 0 | M10: 10 | N10: 0.1666666667 | O10: 1 | Q10: Mean: for 1/2 hourly and daily periods calculate mean of values across all operational combustion lines for the month
A11: May | B11: 30 | C11: 0.5 | D11: 7 | E11: 10 | F11: 0.5555555556 | G11: 1 | K11: May | L11: 0 | M11: 5 | N11: 0.1111111111 | O11: 1
A12: Jun | B12: 30 | C12: 0.5 | D12: 2 | E12: 10 | F12: 0.5 | G12: 2 | K12: Jun | L12: 0 | M12: 1 | N12: 0 | O12: 0
A13: Jul | B13: 30 | C13: 0.5 | D13: 3 | E13: 10 | F13: 0.5 | G13: 2 | K13: Jul | L13: 0 | M13: 0 | N13: 0 | O13: 0 | Q13: Maximum: for 1/2 hourly and daily periods use the highest value across all operational combustion lines for the month
A14: Aug | B14: 30 | C14: 0.5 | D14: 18 | E14: 10 | F14: 1.015 | G14: 3 | K14: Aug | L14: 0 | M14: 5 | N14: 0.03 | O14: 1
A15: Sep | B15: 30 | C15: 0.5 | D15: 2 | E15: 10 | F15: 0.5 | G15: 2 | K15: Sep | L15: 0 | M15: 1 | N15: 0 | O15: 0
A16: Oct | B16: 30 | C16: 1 | D16: 4 | E16: 10 | F16: 1 | G16: 3 | K16: Oct | L16: 0 | M16: 1 | N16: 0 | O16: 0
A17: Nov | B17: 30 | C17: 1.5 | D17: 5 | E17: 10 | F17: 1.27 | G17: 2 | K17: Nov | L17: 1 | M17: 5 | N17: 0.64 | O17: 2
A18: Dec | B18: 30 | C18: 2 | D18: 45 | E18: 10 | F18: 1.509090909 | G18: 7 | K18: Dec | L18: 1 | M18: 4 | N18: 0.3181818182 | O18: 2
K19: Annual | L19: =AVERAGE(L7:L18) -> 0.3333333333 | M19: =MAX(M7:M18) -> 28 | N19: =AVERAGE(N7:N18) -> 0.1776356499 | O19: =MAX(O7:O18) -> 2
J21: =+A6 -> 2022 | K21: mg/Nm3 | L21: Monthly 1/2 hourly mean | M21: Monthly 1/2 hourly maximum | N21: Monthly daily mean | O21: Monthly daily maximum
J22: A2 | K22: Jan | L22: 1 | M22: 7 | N22: 1 | O22: 2
K23: Feb | L23: 1 | M23: 4 | N23: 1 | O23: 1
K24: Mar | L24: 1 | M24: 17 | N24: 1 | O24: 2
K25: Apr | L25: 1 | M25: 27 | N25: 1 | O25: 2
K26: May | L26: 1 | M26: 7 | N26: 1 | O26: 1
K27: Jun | L27: 1 | M27: 2 | N27: 1 | O27: 2
K28: Jul | L28: 1 | M28: 3 | N28: 1 | O28: 2
K29: Aug | L29: 1 | M29: 18 | N29: 2 | O29: 3
K30: Sep | L30: 1 | M30: 2 | N30: 1 | O30: 2
K31: Oct | L31: 2 | M31: 4 | N31: 2 | O31: 3
K32: Nov | L32: 2 | M32: 3 | N32: 1.9 | O32: 2
K33: Dec | L33: 3 | M33: 45 | N33: 2.7 | O33: 7
K34: Annual | L34: =AVERAGE(L22:L33) -> 1.333333333 | M34: =MAX(M22:M33) -> 45 | N34: =AVERAGE(N22:N33) -> 1.383333333 | O34: =MAX(O22:O33) -> 7
C43: 01179 372 811
C45: emily.hingston@sol-environment.co.uk
A48: Comments :

Sheet CO 95% 10 min
A1: =+'Cover Page'!$B$29 -> Annual Performance Report 2022 | E1: =+'Cover Page'!$B$33 -> Dudley Energy from Waste Facility
A3: Monitoring of Carbon Monoxide (10-minute avg) | E3: Whole Installation | H3: See Notes in Cell S3 | J3: =+A3 -> Monitoring of Carbon Monoxide (10-minute avg) | O3: Per Combustion Line | Q3: Notes: | S3: Notes:
S4: User to add logic to complete Whole installation, Table A5:H18. From the data in Per Combustion Line, Table K6:Q79, subject to No. of lines installed
A5: mg/Nm3 | B5: 10-minute Reference Periods | F5: Daily Reference Periods
A6: =+'Cover Page'!C39 -> 2022 | B6: 95%ile 10-min avg CO ELV | C6: 95%ile 10-min avg maximum | D6: Monthly CO 10-min avg mean | E6: 10-min avg maximum | F6: Daily CO ELV | G6: Monthly daily mean | H6: Highest daily maximum | K6: =+A6 -> 2022 | L6: mg/Nm3 | M6: 95%ile 10-min avg maximum | N6: Monthly CO 10-min avg mean | O6: 10-min avg maximum | P6: Monthly daily mean | Q6: Monthly daily maximum
A7: Jan | B7: 150 | C7: =MAX(M7,M22) -> 14.58 | D7: =AVERAGE(N7,N22) -> 9.5 | E7: =MAX(O7,O22) -> 28 | F7: 50 | G7: =AVERAGE(P7,P22) -> 9.780867631 | H7: =MAX(Q7,Q22) -> 52 | K7: A1 | L7: Jan | M7: 13.22 | N7: 10 | O7: 27 | P7: 10.20689655 | Q7: 52
A8: Feb | B8: =+B7 -> 150 | C8: =MAX(M8,M23) -> 18.75 | D8: =AVERAGE(N8,N23) -> 9.5 | E8: =MAX(O8,O23) -> 54 | F8: =+F7 -> 50 | G8: =AVERAGE(P8,P23) -> 9.178571429 | H8: =MAX(Q8,Q23) -> 23 | L8: Feb | M8: 13.02 | N8: 9 | O8: 31 | P8: 8.642857143 | Q8: 21
A9: Mar | B9: =+B8 -> 150 | C9: 11.56 | D9: 6.5 | E9: 18 | F9: =+F8 -> 50 | G9: 6.435483871 | H9: 12 | L9: Mar | M9: 9.16 | N9: 5 | O9: 18 | P9: 4.903225806 | Q9: 12 | S9: Whole Installation table A5:H18:
A10: Apr | B10: 150 | C10: 10.08 | D10: 6.5 | E10: 15 | F10: 50 | G10: 6.45 | H10: 17 | L10: Apr | M10: 8.89 | N10: 5 | O10: 14 | P10: 5.366666667 | Q10: 8 | S10: Mean: for 10-min and daily periods use average of all operational combustion lines.
A11: May | B11: 150 | C11: 20.32 | D11: 10.5 | E11: 81 | F11: 50 | G11: 9.4 | H11: 18 | L11: May | M11: 20.01 | N11: 10 | O11: 53 | P11: 9.8 | Q11: 16
A12: Jun | B12: 150 | C12: 12.01 | D12: 8 | E12: 43 | F12: 50 | G12: 7.644444444 | H12: 29 | L12: Jun | M12: 12.01 | N12: 7 | O12: 31 | P12: 6.733333333 | Q12: 10
A13: Jul | B13: 150 | C13: 9.81 | D13: 6.5 | E13: 18 | F13: 50 | G13: 5.96176822 | H13: 11 | L13: Jul | M13: 9.35 | N13: 6 | O13: 15 | P13: 5.516129032 | Q13: 9 | S13: Maximum: for 10-min and daily periods use the highest of all operational combustion lines in any month.
A14: Aug | B14: 150 | C14: 10.03 | D14: 6 | E14: 30 | F14: 50 | G14: 5.916666667 | H14: 51 | L14: Aug | M14: 10.03 | N14: 6 | O14: 20 | P14: 5.566666667 | Q14: 8
A15: Sep | B15: 150 | C15: 15.6 | D15: 10 | E15: 160 | F15: 50 | G15: 9.621264368 | H15: 46 | L15: Sep | M15: 10.11 | N15: 7 | O15: 26 | P15: 6.966666667 | Q15: 21
A16: Oct | B16: 150 | C16: 20.65 | D16: 13.5 | E16: 777 | F16: 50 | G16: 11.77172414 | H16: 90 | L16: Oct | M16: 10.12 | N16: 6 | O16: 23 | P16: 6.103448276 | Q16: 9
A17: Nov | B17: 150 | C17: 107.21 | D17: 23 | E17: 724 | F17: 50 | G17: 17.06 | H17: 122 | L17: Nov | M17: 32.79 | N17: 14 | O17: 252 | P17: 14.32 | Q17: 74
A18: Dec | B18: 150 | C18: 40.41 | D18: 10 | E18: 133 | F18: 50 | G18: 10.18344156 | H18: 46 | L18: Dec | M18: 7.59 | N18: 5 | O18: 33 | P18: 5.045454545 | Q18: 10
L19: Annual | M19: =AVERAGE(M7:M18) -> 13.025 | N19: =AVERAGE(N7:N18) -> 7.5 | O19: =MAX(O7:O18) -> 252 | P19: =AVERAGE(P7:P18) -> 7.430945391 | Q19: =MAX(Q7:Q18) -> 74
K21: =+A6 -> 2022 | L21: mg/Nm3 | M21: 95%ile 10-min avg maximum | N21: Monthly CO 10-min avg mean | O21: 10-min avg maximum | P21: Monthly daily mean | Q21: Monthly daily maximum
K22: A2 | L22: Jan | M22: 14.58 | N22: 9 | O22: 28 | P22: 9.35483871 | Q22: 18
L23: Feb | M23: 18.75 | N23: 10 | O23: 54 | P23: 9.714285714 | Q23: 23
L24: Mar | M24: 11.56 | N24: 8 | O24: 16 | P24: 7.967741935 | Q24: 10
L25: Apr | M25: 10.08 | N25: 8 | O25: 15 | P25: 7.533333333 | Q25: 17
L26: May | M26: 20.32 | N26: 11 | O26: 81 | P26: 9 | Q26: 18
L27: Jun | M27: 11.53 | N27: 9 | O27: 43 | P27: 8.555555556 | Q27: 29
L28: Jul | M28: 9.81 | N28: 7 | O28: 18 | P28: 6.407407407 | Q28: 11
L29: Aug | M29: 8.38 | N29: 6 | O29: 30 | P29: 6.266666667 | Q29: 51
L30: Sep | M30: 15.6 | N30: 13 | O30: 160 | P30: 12.27586207 | Q30: 46
L31: Oct | M31: 20.65 | N31: 21 | O31: 777 | P31: 17.44 | Q31: 90
L32: Nov | M32: 107.21 | N32: 32 | O32: 724 | P32: 19.8 | Q32: 122
L33: Dec | M33: 40.41 | N33: 15 | O33: 133 | P33: 15.32142857 | Q33: 46
L34: Annual | M34: =AVERAGE(M22:M33) -> 24.07333333 | N34: =AVERAGE(N22:N33) -> 12.41666667 | O34: =MAX(O22:O33) -> 777 | P34: =AVERAGE(P22:P33) -> 10.80309333 | Q34: =MAX(Q22:Q33) -> 122
Q36: Monthly daily maximum
C43: 01179 372 811
C45: emily.hingston@sol-environment.co.uk
A48: Comments :
A49: Environment Agency explanatory note: The 10-minute average ELV is based on the “95th percentile”. In this case this means that 95% of the 10 minute averages in the relevant 24-hour period (i.e. 137) must be below 150 mg/Nm3, and 5% (i.e. 7) are allowed to be any value above 150 mg/Nm3. Whilst we expect operators to minimise CO emissions at all times, it is perfectly acceptable for the value of the maximum 10-minute average to be above 150 mg/Nm3, provided the 95th percentile ELV has been met for that period. | Q49: =MAX(Q37:Q48) -> 0
Q51: Monthly daily maximum
Q64: =MAX(Q52:Q63) -> 0
Q66: Monthly daily maximum
Q79: =MAX(Q67:Q78) -> 0

Sheet NH3
A1: =+'Cover Page'!$B$29 -> Annual Performance Report 2022 | E1: =+'Cover Page'!$B$33 -> Dudley Energy from Waste Facility
A3: Monitoring of Ammnonia emissions | D3: Whole Installation | G3: See Notes in Cell Q3 | J3: =+A3 -> Monitoring of Ammnonia emissions | N3: Per Combustion Line | Q3: Notes:
Q4: User to add logic to complete Whole installation, Table A5:G18. From the data in Per Combustion Line, Table J6:O79, subject to No. of lines installed
A5: mg/Nm3 | B5: 1/2 Hourly Reference Periods | E5: Daily Reference Periods
A6: =+'Cover Page'!C39 -> 2022 | B6: 1/2 hourly NH3 ELV | C6: Monthly 1/2 hourly mean | D6: Highest 1/2 hourly maximum | E6: Daily NH3 ELV | F6: Monthly daily mean | G6: Highest daily maximum | J6: =+A6 -> 2022 | K6: mg/Nm3 | L6: Monthly 1/2 hourly mean | M6: Monthly 1/2 hourly maximum | N6: Monthly daily mean | O6: Monthly daily maximum
A7: Jan | B7: 0 | C7: =AVERAGE(L7,L22) -> 2.5 | D7: =MAX(M7,M22) -> 172 | E7: 10 | F7: =AVERAGE(N7,N22) -> 2.462736374 | G7: =MAX(O7,O22) -> 8 | J7: A1 | K7: Jan | L7: 4 | M7: 172 | N7: 3.344827586 | O7: 8
A8: Feb | B8: =+B7 -> 0 | C8: =AVERAGE(L8,L23) -> 3.5 | D8: =MAX(M8,M23) -> 50 | E8: =+E7 -> 10 | F8: =AVERAGE(N8,N23) -> 3.089285714 | G8: =MAX(O8,O23) -> 7 | K8: Feb | L8: 5 | M8: 50 | N8: 4.535714286 | O8: 7
A9: Mar | B9: =+B8 -> 0 | C9: 4 | D9: 108 | E9: =+E8 -> 10 | F9: 4.112903226 | G9: 9 | K9: Mar | L9: 6 | M9: 108 | N9: 6 | O9: 9 | Q9: Whole Installation table A5:G18:
A10: Apr | B10: 0 | C10: 5 | D10: 56 | E10: 10 | F10: 4.85 | G10: 10 | K10: Apr | L10: 8 | M10: 28 | N10: 7.533333333 | O10: 10 | Q10: Mean: for 1/2 hourly and daily periods calculate mean of values across all operational combustion lines for the month
A11: May | B11: 0 | C11: 7.5 | D11: 129 | E11: 10 | F11: 5.778409091 | G11: 13 | K11: May | L11: 8 | M11: 47 | N11: 6.375 | O11: 10
A12: Jun | B12: 0 | C12: 6 | D12: 40 | E12: 10 | F12: 5.45 | G12: 9 | K12: Jun | L12: 7 | M12: 34 | N12: 6.566666667 | O12: 9
A13: Jul | B13: 0 | C13: 5 | D13: 50 | E13: 10 | F13: 4.906810036 | G13: 7 | K13: Jul | L13: 5 | M13: 32 | N13: 5.258064516 | O13: 7 | Q13: Maximum: for 1/2 hourly and daily periods use the highest value across all operational combustion lines for the month
A14: Aug | B14: 0 | C14: 5.5 | D14: 57 | E14: 10 | F14: 5.366666667 | G14: 9 | K14: Aug | L14: 7 | M14: 57 | N14: 6.4 | O14: 9
A15: Sep | B15: 0 | C15: 6.5 | D15: 216 | E15: 10 | F15: 6.421428571 | G15: 15 | K15: Sep | L15: 7 | M15: 82 | N15: 6.7 | O15: 10
A16: Oct | B16: 0 | C16: 6.5 | D16: 202 | E16: 10 | F16: 5.781609195 | G16: 18 | K16: Oct | L16: 5 | M16: 33 | N16: 4.896551724 | O16: 7
A17: Nov | B17: 0 | C17: 7 | D17: 224 | E17: 10 | F17: 6.994166667 | G17: 23 | K17: Nov | L17: 5 | M17: 35 | N17: 5.28 | O17: 8
A18: Dec | B18: 0 | C18: 4 | D18: 64 | E18: 10 | F18: 4.011363636 | G18: 8 | K18: Dec | L18: 3 | M18: 11 | N18: 3.272727273 | O18: 4
K19: Annual | L19: =AVERAGE(L7:L18) -> 5.833333333 | M19: =MAX(M7:M18) -> 172 | N19: =AVERAGE(N7:N18) -> 5.513573782 | O19: =MAX(O7:O18) -> 10
J21: =+A6 -> 2022 | K21: mg/Nm3 | L21: Monthly 1/2 hourly mean | M21: Monthly 1/2 hourly maximum | N21: Monthly daily mean | O21: Monthly daily maximum
J22: A2 | K22: Jan | L22: 1 | M22: 19 | N22: 1.580645161 | O22: 3
K23: Feb | L23: 2 | M23: 19 | N23: 1.642857143 | O23: 4
K24: Mar | L24: 2 | M24: 61 | N24: 2.225806452 | O24: 5
K25: Apr | L25: 2 | M25: 56 | N25: 2.166666667 | O25: 3
K26: May | L26: 7 | M26: 129 | N26: 5.181818182 | O26: 13
K27: Jun | L27: 5 | M27: 40 | N27: 4.333333333 | O27: 8
K28: Jul | L28: 5 | M28: 50 | N28: 4.555555556 | O28: 7
K29: Aug | L29: 4 | M29: 56 | N29: 4.333333333 | O29: 7
K30: Sep | L30: 6 | M30: 216 | N30: 6.142857143 | O30: 15
K31: Oct | L31: 8 | M31: 202 | N31: 6.666666667 | O31: 18
K32: Nov | L32: 9 | M32: 224 | N32: 8.708333333 | O32: 23
K33: Dec | L33: 5 | M33: 64 | N33: 4.75 | O33: 8
K34: Annual | L34: =AVERAGE(L22:L33) -> 4.666666667 | M34: =MAX(M22:M33) -> 224 | N34: =AVERAGE(N22:N33) -> 4.357322747 | O34: =MAX(O22:O33) -> 23
C43: 01179 372 811
C45: emily.hingston@sol-environment.co.uk
A48: Comments :
A49: An indicated ELV value of zero in the table above means that no ammonia limit is set in the permit.
